bitfinex/quotes_SOLUSD_20240628
["timestamp","ask_amount","ask_price","bid_price","bid_amount"]
[1719588315064,17.72462154,141.97,141.9,7.061]
[1719588315270,6.1186,141.95,141.88,18.114322]
[1719588315565,6.1186,141.95,141.91,16.7]
[1719588315566,7.53292154,141.95,141.91,16.7]
[1719588315776,6.1186,141.95,141.92,16.7]
[1719588316743,6.1186,141.95,141.87,33.44]
[1719588317755,7.53292154,141.95,141.87,33.44]
[1719588318072,7.53292154,141.95,141.86,5.57935923]
[1719588318280,7.53292154,141.95,141.85,7.061]
[1719588318580,7.53292154,141.95,141.86,100.0]
[1719588318860,1.41432154,141.94,141.86,100.0]
[1719588319772,15.5153,141.93,141.84,39.25375512]
[1719588319954,1.41432154,141.92,141.84,39.25375512]
[1719588320279,1.41432154,141.92,141.84,54.76905512]
[1719588320676,15.5153,141.93,141.85,127.061]
[1719588320867,15.5153,141.93,141.86,33.44]
[1719588323467,15.5153,141.93,141.86,40.501]
[1719588323674,15.5153,141.93,141.86,33.44]
[1719588324188,1.41432154,141.92,141.84,21.32905512]
[1719588324374,6.0382,141.91,141.84,5.81375512]
[1719588324569,1.41432154,141.9,141.83,100.0]
[1719588325466,6.0382,141.91,141.86,7.061]
[1719588325666,6.0382,141.91,141.85,100.0]
[1719588326044,6.0382,141.91,141.87,133.44]
[1719588326315,15.5153,141.93,141.87,7.061]
[1719588326466,15.5153,141.93,141.85,133.44]
[1719588327272,1.41432154,141.92,141.85,33.44]
[1719588327649,6.5878,141.91,141.83,200.0]
[1719588327977,1.41432154,141.9,141.83,200.0]
[1719588328481,1.41432154,141.9,141.82,39.02460418]
[1719588328777,6.5526,141.88,141.77,200.0]
[1719588328948,1.41432154,141.87,141.77,233.44]
[1719588329369,6.5526,141.88,141.8,100.0]
[1719588329678,6.5526,141.88,141.8,133.44]
[1719588329950,7.96692154,141.88,141.8,133.44]
[1719588330171,7.96692154,141.88,141.77,146.15147241]
[1719588330359,7.96692154,141.88,141.77,46.15147241]
[1719588330753,6.0835,141.86,141.77,5.65047241]
[1719588330947,1.41432154,141.85,141.76,33.44]
[1719588331575,1.41432154,141.85,141.75,5.75227673]
[1719588331883,1.41432154,141.85,141.76,33.44]
[1719588332063,16.374,141.84,141.76,33.44]
[1719588332265,1.41432154,141.83,141.76,33.44]
[1719588332501,6.634,141.81,141.75,16.0489]
[1719588332674,6.634,141.81,141.74,5.54139729]
[1719588332980,16.374,141.79,141.71,16.374]
[1719588333159,1.41432154,141.78,141.71,16.374]
[1719588333351,1.41432154,141.78,141.7,33.44]
[1719588333553,6.5056,141.77,141.68,116.374]
[1719588333963,6.5056,141.77,141.68,100.0]
[1719588334374,6.5056,141.77,141.68,105.70219043]
[1719588335074,6.5056,141.77,141.69,7.061]
[1719588336276,6.5056,141.77,141.71,7.061]
[1719588336474,16.374,141.79,141.68,5.70219043]
[1719588336475,16.374,141.79,141.73,100.0]
[1719588336680,6.0843,141.81,141.75,100.0]
[1719588337356,6.0843,141.81,141.74,33.44]
[1719588337557,6.0843,141.81,141.75,100.0]
[1719588338167,6.0843,141.81,141.74,33.44]
[1719588339381,6.0843,141.81,141.77,33.44]
[1719588340560,6.0843,141.81,141.74,33.44]
[1719588340773,6.0843,141.81,141.75,20.0]
[1719588341592,6.0843,141.81,141.76,7.061]
[1719588342284,6.0843,141.81,141.74,33.44]
[1719588342661,6.0843,141.81,141.75,100.0]
[1719588343285,6.0843,141.81,141.76,7.061]
[1719588343482,6.0843,141.81,141.77,33.44]
[1719588344379,6.0843,141.81,141.74,39.0060041]
[1719588344966,1.41432154,141.8,141.74,39.0060041]
[1719588345465,6.0843,141.81,141.74,46.0670041]
[1719588346471,1.41432154,141.8,141.74,46.0670041]
[1719588347068,6.0843,141.81,141.74,46.0670041]
[1719588347069,7.49862154,141.81,141.74,46.0670041]
[1719588347274,6.0843,141.81,141.74,46.0670041]
[1719588347767,6.0843,141.81,141.74,39.0060041]
[1719588348072,1.41432154,141.8,141.74,39.0060041]
[1719588349266,6.0843,141.81,141.74,39.0060041]
[1719588351181,6.0843,141.81,141.75,7.061]
[1719588351380,6.0843,141.81,141.75,107.061]
[1719588351587,6.0843,141.81,141.77,33.44]
[1719588353298,1.41432154,141.8,141.74,39.0060041]
[1719588353507,1.41432154,141.8,141.74,33.44]
[1719588355203,7.49862154,141.81,141.74,33.44]
[1719588355870,6.0843,141.81,141.75,100.0]
[1719588356198,6.0843,141.81,141.8,0.09060615]
[1719588362802,5.0904,141.81,141.8,0.09060615]
[1719588366489,3.8746,141.81,141.8,0.09060615]
[1719588384148,16.071,141.83,141.8,0.09060615]
[1719588384441,10.43684062,141.92,141.8,0.09060615]
[1719588384442,6.3785,141.84,141.8,33.53060615]
[1719588385298,6.3785,141.84,141.8,40.59160615]
[1719588387147,15.5614,141.87,141.8,40.59160615]
[1719588387356,15.5614,141.87,141.83,33.44]
[1719588387511,15.5614,141.87,141.84,0.6023417]
[1719588387829,15.5614,141.87,141.84,1.40964627]
[1719588388607,15.5614,141.87,141.83,40.501]
[1719588388806,15.5614,141.87,141.83,33.44]
[1719588392617,6.2822,141.89,141.83,40.501]
[1719588393302,6.2822,141.89,141.83,133.44]
[1719588393731,16.0215,141.9,141.86,33.44]
[1719588393923,21.1774,141.93,141.86,33.44]
[1719588394306,21.1774,141.93,141.87,1.40920145]
[1719588394499,21.1774,141.93,141.86,33.44]
[1719588395410,1.41432154,141.92,141.86,33.44]
[1719588395627,21.1774,141.93,141.86,33.44]
[1719588396033,21.1774,141.93,141.86,40.501]
[1719588396206,21.1774,141.93,141.86,33.44]
[1719588396406,1.41432154,141.92,141.86,33.44]
[1719588397111,21.1774,141.93,141.86,33.44]
[1719588397526,1.41432154,141.92,141.86,33.44]
[1719588397729,1.41432154,141.92,141.82,5.56839723]
[1719588398050,1.41432154,141.92,141.83,33.44]
[1719588398251,1.41432154,141.92,141.81,100.0]
[1719588398457,1.41432154,141.92,141.82,33.44]
[1719588400358,21.1774,141.93,141.85,40.501]
[1719588400851,1.41432154,141.92,141.85,33.44]
[1719588402645,1.41432154,141.92,141.82,133.44]
[1719588402969,15.0022,141.91,141.82,133.44]
[1719588403144,6.6041,141.89,141.82,33.44]
[1719588403336,1.41432154,141.88,141.82,33.44]
[1719588404159,8.01842154,141.89,141.82,33.44]
[1719588405359,6.6041,141.89,141.82,33.44]
[1719588405957,1.41432154,141.88,141.82,33.44]
[1719588406248,8.01842154,141.89,141.82,33.44]
[1719588406558,6.6041,141.89,141.82,33.44]
[1719588407142,1.41432154,141.88,141.82,33.44]
[1719588407335,15.6377,141.87,141.79,33.44]
[1719588407547,1.41432154,141.86,141.79,33.44]
[1719588407859,1.41432154,141.85,141.79,39.19657011]
[1719588408031,6.5145,141.84,141.79,5.75657011]
[1719588408237,6.5145,141.84,141.76,33.44]
[1719588409245,6.5145,141.84,141.77,7.061]
[1719588409958,15.6377,141.87,141.79,33.44]
[1719588410476,15.6377,141.87,141.82,133.44]
[1719588410973,6.5042,141.88,141.82,133.44]
[1719588411168,16.4492,141.9,141.85,33.44]
[1719588411480,16.4492,141.9,141.86,1.408434]
[1719588412439,6.1091,141.92,141.86,101.408434]
[1719588412637,6.1091,141.92,141.88,33.44]
[1719588413055,6.1091,141.92,141.88,40.501]
[1719588413551,16.4492,141.94,141.88,140.501]
[1719588414239,16.4492,141.94,141.88,133.44]
[1719588415456,6.3449,141.96,141.88,133.44]
[1719588416240,6.3449,141.96,141.89,1.40884696]
[1719588416466,6.3449,141.96,141.9,1.40889733]
[1719588416799,6.3449,141.96,141.89,33.44]
[1719588419484,6.3449,141.96,141.87,33.44]
[1719588421083,6.3449,141.96,141.88,1.40905998]
[1719588422482,6.3449,141.96,141.88,101.40905998]
[1719588424671,6.3449,141.96,141.88,100.0]
[1719588425192,6.3449,141.96,141.89,0.82982248]
[1719588426290,6.3449,141.96,141.88,100.0]
[1719588428192,6.3449,141.96,141.89,1.40896598]
[1719588428373,6.3449,141.96,141.9,1.40895945]
[1719588429261,6.3449,141.96,141.9,34.84895945]
[1719588429602,6.3449,141.96,141.9,133.44]
[1719588430258,6.25429385,141.96,141.9,133.44]
[1719588431194,15.822,141.98,141.9,140.501]
[1719588431491,15.822,141.98,141.91,1.40876215]
[1719588432062,1.41432154,141.97,141.9,33.44]
[1719588432475,15.822,141.98,141.9,33.44]
[1719588432676,15.822,141.98,141.9,133.44]
[1719588432877,15.822,141.98,141.92,100.0]
[1719588433184,15.822,141.98,141.93,33.44]
[1719588433762,15.822,141.98,141.9,100.0]
[1719588434864,15.822,141.98,141.89,33.44]
[1719588434865,15.822,141.98,141.92,133.44]
[1719588435089,21.6208,142.01,141.92,133.44]
[1719588435563,1.41432154,142.0,141.92,133.44]
[1719588436669,1.41432154,142.0,141.92,33.44]
[1719588438080,1.41432154,142.0,141.9,5.60743895]
[1719588438690,21.41432154,142.0,141.9,5.60743895]
[1719588440095,21.41432154,142.0,141.9,105.60743895]
[1719588442900,21.41432154,142.0,141.9,5.60743895]
[1719588444588,21.41432154,142.0,141.89,33.44]
[1719588445811,21.41432154,142.0,141.89,39.22212115]
[1719588446585,38.12432154,142.0,141.95,16.71]
[1719588447627,22.0281,141.98,141.94,16.71]
[1719588447803,1.41432154,141.97,141.94,16.71]
[1719588448137,1.41432154,141.97,141.93,16.71]
[1719588449419,22.0281,141.98,141.94,16.71]
[1719588450708,22.0281,141.98,141.95,16.71]
[1719588452221,22.0281,141.98,141.94,16.71]
[1719588453029,22.0281,141.98,141.95,1.37986096]
[1719588453231,22.0281,141.98,141.95,16.71]
[1719588454225,22.0281,141.98,141.96,16.71]
[1719588454987,22.0281,141.98,141.97,16.71]
[1719588455137,22.0281,141.98,141.96,16.71]
[1719588456641,22.0281,141.98,141.95,16.71]
[1719588457257,22.0281,141.98,141.94,16.71]
[1719588458669,22.0281,141.98,141.95,16.71]
[1719588459239,16.71,142.01,141.96,16.71]
[1719588459453,1.41432154,142.0,141.96,16.71]
[1719588460142,1.41432154,142.01,141.96,16.71]
[1719588460855,21.977,142.02,141.97,16.71]
[1719588461063,21.977,142.02,141.98,16.71]
[1719588461558,21.977,142.02,141.99,16.71]
[1719588461856,21.977,142.02,141.98,16.71]
[1719588462277,1.41432154,142.01,141.98,16.71]
[1719588462646,21.977,142.02,141.98,16.71]
[1719588463363,21.977,142.02,141.99,16.71]
[1719588463549,21.977,142.02,141.96,16.71]
[1719588463742,21.977,142.02,141.99,16.71]
[1719588464468,21.977,142.02,142.0,16.71]
[1719588465175,21.977,142.02,141.99,16.71]
[1719588465482,1.41432154,142.01,141.92,157.9304]
[1719588465693,1.41432154,142.01,141.98,16.71]
[1719588465977,1.41432154,142.01,141.9,121.977]
[1719588466156,1.41432154,142.01,141.96,16.71]
[1719588466351,18.12432154,142.01,141.9,100.0]
[1719588466652,18.12432154,142.01,141.95,16.71]
[1719588467052,18.12432154,142.01,141.96,16.71]
[1719588467674,1.41432154,142.01,141.97,16.71]
[1719588468204,21.977,142.02,141.98,16.71]
[1719588468477,21.977,142.02,142.0,16.71]
[1719588468841,21.977,142.02,141.99,16.71]
[1719588469361,21.977,142.02,142.0,16.71]
[1719588470117,21.977,142.02,141.94,116.5599]
[1719588470289,21.977,142.02,142.0,16.71]
[1719588470795,15.6757,142.02,142.0,16.71]
[1719588471298,15.6757,142.02,142.01,16.71]
[1719588471903,7.42362154,142.05,142.01,16.71]
[1719588472987,7.42362154,142.05,141.94,122.6768]
[1719588473189,66.84,142.1,141.99,100.0]
[1719588473190,1.41432154,142.1,141.99,100.0]
[1719588473405,6.4478,142.09,141.99,100.0]
[1719588473722,1.41432154,142.08,142.04,16.71]
[1719588474017,6.4478,142.09,142.07,16.71]
[1719588474193,6.4478,142.09,142.08,16.71]
[1719588474519,16.6143,142.11,142.08,16.71]
[1719588474685,6.3921,142.12,142.09,16.71]
[1719588475118,6.3921,142.12,142.03,166.84]
[1719588475299,6.3921,142.12,142.09,16.71]
[1719588475500,15.9204,142.14,142.1,16.71]
[1719588476120,15.9204,142.14,142.11,16.71]
[1719588477408,0.8447347,142.15,142.07,100.0]
[1719588477600,0.8447347,142.15,142.12,16.71]
[1719588478431,0.8447347,142.15,142.07,100.0]
[1719588478601,0.8447347,142.15,142.14,16.71]
[1719588478795,0.8447347,142.15,142.09,33.34]
[1719588479222,0.8447347,142.15,142.09,133.34]
[1719588480357,0.8447347,142.15,142.09,139.4423]
[1719588480630,0.8447347,142.15,142.12,33.34]
[1719588480992,0.8447347,142.15,142.13,1.40642571]
[1719588481426,0.8447347,142.15,142.13,101.40642571]
[1719588482006,0.0418428,142.18,142.13,101.40642571]
[1719588482335,16.6409,142.26,142.15,33.34]
[1719588482620,1.41432154,142.25,142.15,33.34]
[1719588483013,1.41432154,142.25,142.15,133.34]
[1719588483601,1.41432154,142.25,142.15,33.34]
[1719588483904,1.41432154,142.25,142.15,133.34]
[1719588484721,1.41432154,142.25,142.15,33.34]
[1719588485534,1.41432154,142.25,142.11,21.77023142]
[1719588485845,1.41432154,142.25,142.11,55.11023142]
[1719588486218,6.5009,142.24,142.1,6.1356]
[1719588486417,36.67992154,142.23,142.1,6.1356]
[1719588487039,6.2314,142.22,142.1,6.1356]
[1719588487339,6.2314,142.22,141.95,25.0]
[1719588487340,54.8708,142.2,142.06,33.34]
[1719588487550,6.2314,142.18,142.03,48.907]
[1719588487735,21.41432154,142.17,142.04,100.0]
[1719588487932,21.41432154,142.17,142.03,48.907]
[1719588489048,21.41432154,142.17,142.04,100.0]
[1719588489245,21.41432154,142.17,142.06,33.34]
[1719588490755,21.41432154,142.17,142.07,7.061]
[1719588491292,21.41432154,142.17,142.06,33.34]
[1719588493451,21.41432154,142.17,142.06,133.34]
[1719588493871,21.41432154,142.17,142.07,7.061]
[1719588494244,1.41432154,142.17,142.06,133.34]
[1719588494448,1.41432154,142.17,142.09,33.34]
[1719588495785,21.41432154,142.17,142.09,33.34]
[1719588497158,6.2314,142.18,142.09,133.34]
[1719588498233,1.41432154,142.17,142.09,33.34]
[1719588499682,1.41432154,142.17,142.09,40.401]
[1719588500441,7.64572154,142.18,142.09,133.34]
[1719588500586,1.41432154,142.17,142.09,33.34]
[1719588500990,7.64572154,142.18,142.09,133.34]
[1719588501993,6.2314,142.18,142.09,133.34]
[1719588502710,15.2994,142.2,142.11,100.0]
[1719588502877,15.2994,142.2,142.12,33.34]
[1719588504272,1.41432154,142.19,142.12,33.34]
[1719588505501,1.41432154,142.19,142.1,30.6801]
[1719588505702,1.41432154,142.19,142.1,15.3807]
[1719588514101,16.71372154,142.2,142.1,15.3807]
[1719588515117,15.2994,142.2,142.1,15.3807]
[1719588516164,1.41432154,142.19,142.09,54.44074857]
[1719588516409,1.41432154,142.19,142.09,154.44074857]
[1719588517303,15.2994,142.2,142.09,154.44074857]
[1719588517304,16.71372154,142.2,142.09,154.44074857]
[1719588518341,15.2994,142.2,142.09,154.44074857]
[1719588518819,15.2994,142.2,142.12,33.34]
[1719588520621,15.2994,142.2,142.12,49.1907]
[1719588521832,15.2994,142.2,142.12,33.34]
[1719588523828,15.2994,142.2,142.13,100.0]
[1719588525038,15.2994,142.2,142.13,115.2994]
[1719588526122,15.2994,142.2,142.13,15.2994]
[1719588526429,15.2994,142.2,142.12,33.34]
[1719588526638,15.2994,142.2,142.13,0.98955377]
[1719588527715,15.2994,142.2,142.12,15.2994]
[1719588528326,15.2994,142.2,142.11,100.0]
[1719588528530,1.41432154,142.19,142.11,15.2994]
[1719588528942,6.4734,142.18,142.1,30.0]
[1719588529122,6.4734,142.18,142.1,33.34]
[1719588529329,6.4734,142.18,142.11,100.0]
[1719588530437,6.4734,142.18,142.1,33.34]
[1719588530617,6.4734,142.18,142.11,100.0]
[1719588531218,6.4734,142.18,142.1,33.34]
[1719588534541,6.4734,142.18,142.11,100.0]
[1719588534725,6.4734,142.18,142.16,16.66]
[1719588535178,6.4734,142.18,142.15,16.66]
[1719588536443,6.4734,142.18,142.16,16.66]
[1719588538060,15.2994,142.2,142.16,16.66]
[1719588538368,15.2994,142.2,142.19,16.66]
[1719588539762,15.2994,142.2,142.18,16.66]
[1719588540746,15.2994,142.2,142.17,16.66]
[1719588541363,15.2994,142.2,142.18,16.66]
[1719588545160,15.2994,142.2,142.15,7.061]
[1719588545391,6.5034,142.22,142.19,16.66]
[1719588545689,6.5034,142.22,142.21,16.66]
[1719588546276,6.5034,142.22,142.2,16.66]
[1719588548098,6.5034,142.22,142.17,23.721]
[1719588548099,6.5034,142.22,142.14,100.0]
[1719588548301,6.5034,142.22,142.2,16.66]
[1719588548601,6.5034,142.22,142.19,16.66]
[1719588549197,6.5034,142.22,142.14,100.0]
[1719588549198,6.5034,142.22,142.14,105.57547211]
[1719588549498,6.5034,142.22,142.19,16.66]
[1719588550997,6.5034,142.22,142.15,7.061]
[1719588551186,6.5034,142.22,142.18,16.66]
[1719588551187,1.41432154,142.21,142.18,16.66]
[1719588551504,7.91772154,142.22,142.18,16.66]
[1719588551794,7.91772154,142.22,142.15,7.061]
[1719588551795,7.91772154,142.22,142.17,16.66]
[1719588551971,7.91772154,142.22,142.18,16.66]
[1719588553391,6.5034,142.22,142.18,16.66]
[1719588553799,15.8505,142.24,142.15,7.061]
[1719588553990,17.26482154,142.24,142.2,16.66]
[1719588554381,15.8505,142.24,142.2,16.66]
[1719588557295,15.8505,142.24,142.17,16.66]
[1719588557481,15.8505,142.24,142.17,73.701]
[1719588559514,21.3472,142.28,142.23,16.66]
[1719588559697,24.00530386,142.27,142.23,16.66]
[1719588560007,21.41432154,142.27,142.23,16.66]
[1719588560213,20.0,142.27,142.23,16.66]
[1719588560418,21.3472,142.28,142.24,16.66]
[1719588560704,21.3472,142.28,142.25,16.66]
[1719588560884,21.3472,142.28,142.26,16.66]
[1719588561084,21.3472,142.28,142.25,16.66]
[1719588561480,21.3472,142.28,142.26,1.40525172]
[1719588561815,2.25905624,142.3,142.27,16.66]
[1719588562013,0.8447347,142.3,142.27,16.66]
[1719588562578,0.8447347,142.3,142.28,1.40475788]
[1719588562787,0.8447347,142.3,142.29,16.66]
[1719588562980,0.8447347,142.3,142.28,1.40475788]
[1719588563274,16.0279,142.35,142.29,16.66]
[1719588563491,16.0279,142.35,142.32,16.66]
[1719588563698,16.0279,142.35,142.31,16.66]
[1719588563985,16.0279,142.35,142.33,16.66]
[1719588565114,16.66,142.34,142.24,115.3508]
[1719588565324,1.41432154,142.34,142.29,16.66]
[1719588565683,16.0279,142.35,142.29,16.66]
[1719588565684,17.44222154,142.35,142.29,16.66]
[1719588565907,17.44222154,142.35,142.24,121.13940378]
[1719588566088,16.66,142.33,142.27,16.66]
[1719588566287,16.66,142.34,142.28,16.66]
[1719588566586,16.0279,142.35,142.22,106.1877]
[1719588566900,6.2958,142.33,142.21,49.8521]
[1719588567537,1.41432154,142.32,142.21,49.8521]
[1719588568418,21.41432154,142.32,142.21,16.5721]
[1719588569927,21.41432154,142.32,142.2,100.0]
[1719588570099,15.6703,142.31,142.18,15.3552]
[1719588570307,21.41432154,142.3,142.19,100.0]
[1719588570605,1.41432154,142.29,142.19,100.0]
[1719588571136,21.41432154,142.3,142.19,100.0]
[1719588571930,1.41432154,142.29,142.19,100.0]
[1719588573922,1.41432154,142.29,142.18,20.92944161]
[1719588575432,6.5923,142.28,142.18,20.92944161]
[1719588575733,1.41432154,142.27,142.18,20.92944161]
[1719588576132,1.41432154,142.27,142.18,5.57424161]
[1719588576347,1.41432154,142.27,142.17,133.28]
[1719588576858,15.6703,142.31,142.23,100.0]
[1719588576859,15.932,142.31,142.23,100.0]
[1719588577066,15.932,142.31,142.23,133.28]
[1719588578453,15.932,142.31,142.25,100.0]
[1719588578641,15.932,142.31,142.26,1.40534206]
[1719588578860,15.932,142.31,142.27,1.40534209]
[1719588579155,15.932,142.31,142.25,100.0]
[1719588579547,6.1231,142.32,142.25,100.0]
[1719588580248,15.0633,142.35,142.27,100.0]
[1719588580864,15.0633,142.35,142.26,33.28]
[1719588581570,16.47762154,142.35,142.26,33.28]
[1719588582766,15.0633,142.35,142.26,33.28]
[1719588582968,15.0633,142.35,142.28,100.0]
[1719588583541,15.0633,142.35,142.26,133.28]
[1719588584167,15.0633,142.35,142.28,100.0]
[1719588585268,15.0633,142.35,142.29,1.09769277]
[1719588585474,6.6061,142.36,142.3,101.09761563]
[1719588585990,6.6061,142.36,142.29,33.28]
[1719588586842,6.6061,142.36,142.3,100.0]
[1719588587673,6.6061,142.36,142.28,100.0]
[1719588587976,6.6061,142.36,142.28,133.28]
[1719588589245,6.6061,142.36,142.28,33.28]
[1719588589462,6.6061,142.36,142.26,115.0633]
[1719588590166,1.41432154,142.35,142.26,115.0633]
[1719588590895,1.41432154,142.35,142.26,100.0]
[1719588591685,15.1197,142.34,142.26,100.0]
[1719588592064,15.1197,142.34,142.25,43.80635316]
[1719588592483,15.1197,142.34,142.25,21.62475316]
[1719588592789,15.1197,142.34,142.25,5.75235316]
[1719588592790,1.41432154,142.33,142.25,5.75235316]
[1719588592974,1.41432154,142.32,142.23,33.28]
[1719588593674,1.41432154,142.32,142.19,101.22369108]
[1719588593675,15.6048,142.3,142.19,101.22369108]
[1719588593874,1.41432154,142.29,142.2,30.0]
[1719588594092,1.41432154,142.29,142.2,45.1197]
[1719588594788,1.41432154,142.29,142.19,6.82655215]
[1719588597587,6.4419,142.28,142.19,5.60286107]
[1719588597789,16.1075,142.26,142.17,33.28]
[1719588597971,1.41432154,142.25,142.19,1.22442571]
[1719588598171,1.41432154,142.25,142.17,33.28]
[1719588598586,1.41432154,142.25,142.17,34.50448872]
[1719588599772,1.41432154,142.25,142.17,40.06954405]
[1719588600774,1.41432154,142.25,142.17,140.06954405]
[1719588601285,1.41432154,142.25,142.17,40.06954405]
[1719588602469,17.52182154,142.26,142.17,140.06954405]
[1719588602688,17.52182154,142.26,142.17,40.06954405]
[1719588603380,16.1075,142.26,142.17,40.06954405]
[1719588603867,16.1075,142.26,142.17,6.78954405]
[1719588604482,1.41432154,142.25,142.17,6.78954405]
[1719588605375,6.4046,142.24,142.17,6.78954405]
[1719588605571,1.41432154,142.23,142.17,6.78954405]
[1719588605994,7.81892154,142.24,142.17,6.78954405]
[1719588606469,6.2437,142.22,142.17,1.22448872]
[1719588606701,6.2437,142.22,142.11,100.0]
[1719588606702,1.41432154,142.21,142.11,100.0]
[1719588606873,1.41432154,142.2,142.11,100.0]
[1719588607191,1.41432154,142.2,142.11,101.22489432]
[1719588608103,1.41432154,142.21,142.11,101.22489432]
[1719588608394,1.41432154,142.2,142.11,1.22489432]
[1719588609278,1.41432154,142.19,142.11,1.22489432]
[1719588609475,17.02762154,142.21,142.11,1.22489432]
[1719588609678,1.41432154,142.2,142.11,1.22489432]
[1719588609893,21.9711,142.19,142.11,1.22489432]
[1719588610092,1.41432154,142.18,142.11,1.22489432]
[1719588611298,21.9711,142.19,142.14,33.28]
[1719588611775,15.6133,142.19,142.14,33.28]
[1719588612287,15.6133,142.19,142.15,7.055]
[1719588613175,15.6133,142.19,142.14,33.28]
[1719588613403,15.6133,142.19,142.11,101.22489432]
[1719588613612,15.6133,142.19,142.12,20.0]
[1719588613782,11.8948503,142.19,142.13,33.28]
[1719588614285,6.4874,142.22,142.14,7.055]
[1719588616404,1.41432154,142.21,142.13,33.28]
[1719588616699,6.4874,142.22,142.11,101.22489432]
[1719588616700,1.41432154,142.2,142.11,101.22489432]
[1719588616877,16.0556,142.19,142.11,101.22489432]
[1719588617510,16.0556,142.19,142.11,1.22489432]
[1719588617712,16.0556,142.19,142.11,21.22489432]
[1719588618092,16.0556,142.19,142.11,1.22489432]
[1719588618528,16.0556,142.19,142.11,101.22489432]
[1719588618689,16.0556,142.19,142.11,1.22489432]
[1719588618885,1.41432154,142.18,142.11,1.22489432]
[1719588619943,6.3254,142.17,142.11,1.22489432]
[1719588620521,1.41432154,142.16,142.11,1.22489432]
[1719588620733,15.6251,142.15,142.08,33.28]
[1719588621076,1.41432154,142.14,142.05,133.28]
[1719588621245,1.41432154,142.14,142.05,34.50533979]
[1719588621499,1.41432154,142.14,142.05,33.28]
[1719588621726,1.41432154,142.14,142.03,138.444]
[1719588621727,1.41432154,142.14,142.03,115.7639]
[1719588622041,6.4925,142.13,142.04,33.28]
[1719588624629,1.41432154,142.12,142.04,33.28]
[1719588627855,7.90682154,142.13,142.04,33.28]
[1719588628018,6.4925,142.13,142.05,100.0]
[1719588629452,1.41432154,142.12,142.03,105.64801449]
[1719588629621,1.41432154,142.12,142.04,53.28]
[1719588630047,16.3787,142.11,142.04,53.28]
[1719588630291,1.41432154,142.1,142.04,53.28]
[1719588631431,1.41432154,142.1,142.04,33.28]
[1719588631817,6.0411,142.09,142.01,16.3787]
[1719588632014,6.0411,142.09,141.97,267.39014273]
[1719588632015,16.325,142.07,141.97,101.22544273]
[1719588632217,1.41432154,142.06,141.98,33.28]
[1719588633124,16.325,142.07,141.98,33.28]
[1719588633125,16.325,142.07,141.99,1.4081073]
[1719588633472,16.325,142.07,141.98,133.28]
[1719588635142,17.73932154,142.07,141.98,133.28]
[1719588635345,17.73932154,142.07,141.98,33.28]
[1719588635638,17.73932154,142.07,141.97,6.80142905]
[1719588636363,16.325,142.07,141.98,100.0]
[1719588637049,16.325,142.07,141.99,33.28]
[1719588638376,16.325,142.07,142.0,7.055]
[1719588638835,16.325,142.07,141.99,33.28]
[1719588639639,1.41432154,142.06,141.99,33.28]
[1719588639839,1.41432154,142.06,141.97,6.80142905]
[1719588640559,6.4866,142.05,141.97,6.80142905]
[1719588640770,1.41432154,142.04,141.97,6.80142905]
[1719588640944,1.41432154,142.04,141.97,5.57598632]
[1719588641147,1.41432154,142.04,141.96,133.28]
[1719588641347,1.41432154,142.04,141.97,21.22617352]